bitfinex-derivatives/quotes_SOLF0:USTF0_20250831
["timestamp","ask_amount","ask_price","bid_price","bid_amount"]
[1756648524109,122.16,202.02,201.95,4.58113306]
[1756648524305,122.16,202.01,201.96,4.58113306]
[1756648524506,0.04,202.0,201.97,4.58113306]
[1756648524808,0.04,202.0,201.93,7.42]
[1756648525005,0.04,202.0,201.94,4.58219496]
[1756648525202,122.14,201.99,201.96,7.42]
[1756648525406,122.14,201.99,201.97,4.58219496]
[1756648525606,122.18,201.99,201.96,7.42]
[1756648525807,122.18,201.99,201.97,4.58291825]
[1756648526008,122.18,201.99,201.96,7.42]
[1756648526309,122.18,201.99,201.97,4.58291825]
[1756648526506,122.14,201.99,201.98,4.58291825]
[1756648526711,122.14,201.99,201.98,12.00291825]
[1756648527004,332.98,202.05,201.98,12.00291825]
[1756648527209,332.98,202.05,201.84,11.54]
[1756648527210,122.34,202.04,201.99,4.55115771]
[1756648527411,122.38,202.04,202.0,11.97115771]
[1756648527611,122.38,202.04,202.01,4.55115771]
[1756648527803,122.38,202.04,202.0,7.42]
[1756648528107,122.38,202.04,202.01,11.97131928]
[1756648528303,122.38,202.04,202.01,7.42]
[1756648528608,122.34,202.04,201.87,7.42]
[1756648528810,88.78,202.03,201.89,7.42]
[1756648529010,88.78,202.03,201.91,7.42]
[1756648529209,88.78,202.03,201.87,4.16477564]
[1756648529210,88.78,202.03,201.93,7.42]
[1756648529413,88.78,202.03,201.95,7.42]
[1756648529608,122.32,202.04,201.97,7.42]
[1756648529813,122.32,202.04,201.99,7.42]
[1756648530023,122.36,202.04,202.01,7.42]
[1756648530208,122.36,202.04,202.02,4.55219183]
[1756648530409,122.3,202.03,201.89,7.42]
[1756648530612,122.3,202.03,201.91,7.42]
[1756648530812,122.3,202.03,201.88,11.72]
[1756648530813,122.3,202.03,201.93,7.42]
[1756648531013,122.3,202.03,201.95,7.42]
[1756648531208,122.3,202.03,201.97,7.42]
[1756648531414,122.34,202.03,201.99,7.42]
[1756648531618,122.34,202.03,202.0,4.55415511]
[1756648531811,0.04,202.03,202.01,4.55415511]
[1756648532010,0.04,202.03,202.02,4.55415511]
[1756648532213,122.42,202.03,202.02,4.55415511]
[1756648533508,122.4,202.03,202.02,4.55415511]
[1756648533918,122.4,202.03,202.02,4.55798394]
[1756648534514,122.36,202.03,202.02,4.55798394]
[1756648534709,122.32,202.03,202.02,4.55934028]
[1756648535711,122.3,202.03,202.02,4.55934028]
[1756648535912,332.98,202.05,202.02,11.97934028]
[1756648536119,122.28,202.04,202.03,4.55934028]
[1756648537016,122.28,202.04,202.03,11.97934028]
[1756648537418,122.26,202.04,202.03,4.55934028]
[1756648537715,122.26,202.04,202.03,4.56367005]
[1756648538723,332.98,202.05,202.04,7.92]
[1756648538912,455.24,202.05,202.04,12.48367005]
[1756648539414,455.24,202.05,202.04,4.56367005]
[1756648539612,122.24,202.05,202.04,4.56367005]
[1756648540614,122.3,202.05,202.04,4.56367005]
[1756648542023,122.8,202.05,202.04,4.50367005]
[1756648542321,122.74,202.05,201.95,7.92]
[1756648542516,122.24,202.05,201.95,7.92]
[1756648544423,127.73312529,202.05,201.95,7.92]
[1756648548723,127.73312529,202.05,201.84,8.3124995]
[1756648548724,5.49312529,202.04,201.9,7.92]
[1756648551324,5.49312529,202.03,201.9,7.92]
[1756648554124,5.49312529,202.03,201.91,4.59583738]
[1756648554330,28.58,202.02,201.92,4.59583738]
[1756648554529,28.58,202.02,201.93,4.59583738]
[1756648554727,28.58,202.02,201.94,4.59583738]
[1756648554925,5.49312529,202.03,201.95,4.59583738]
[1756648555129,66.2,202.02,201.96,4.59583738]
[1756648555329,66.2,202.02,201.97,4.59583738]
[1756648555530,66.2,202.02,201.98,4.59583738]
[1756648555732,66.2,202.02,201.99,4.59583738]
[1756648556129,66.2,202.02,201.92,7.92]
[1756648558230,66.2,202.02,201.93,4.59521577]
[1756648558431,66.2,202.02,201.94,4.59521577]
[1756648558628,66.2,202.02,201.92,7.92]
[1756648558829,5.49312529,202.03,201.92,7.92]
[1756648559031,28.2,202.02,201.92,7.92]
[1756648559426,28.2,202.02,201.94,7.92]
[1756648560336,28.2,202.02,201.95,4.58209112]
[1756648560638,28.2,202.02,201.96,4.58209112]
[1756648560936,28.2,202.02,201.97,4.58219006]
[1756648561132,28.2,202.02,201.98,4.58219006]
[1756648561333,28.2,202.02,201.87,4.15909796]
[1756648561334,28.2,202.02,201.99,4.58219006]
[1756648561538,28.2,202.02,202.0,4.58228511]
[1756648561837,28.2,202.02,202.01,4.58228511]
[1756648563138,5.49312529,202.04,202.01,4.58228511]
[1756648563339,122.06,202.03,202.02,4.58228511]
[1756648563533,5.49312529,202.06,202.02,4.58228511]
[1756648563737,5.49312529,202.07,202.04,7.92]
[1756648564039,122.14,202.06,202.05,4.58228511]
[1756648566639,5.49312529,202.07,202.05,4.58228511]
[1756648566835,5.49312529,202.08,202.06,4.58228511]
[1756648567035,5.49312529,202.09,202.07,4.58228511]
[1756648567238,122.18,202.08,202.02,7.92]
[1756648567433,122.18,202.08,202.04,7.92]
[1756648567635,122.18,202.08,202.05,4.60142266]
[1756648567834,122.18,202.08,202.06,4.60142266]
[1756648568139,122.18,202.08,202.07,4.60142266]
[1756648569637,127.67312529,202.08,202.0,7.35]
[1756648569837,127.67312529,202.08,202.01,4.6013059]
[1756648570141,127.67312529,202.08,202.02,4.6013059]
[1756648570341,127.67312529,202.08,202.03,4.6013059]
[1756648570542,127.67312529,202.08,202.04,4.60147699]
[1756648570840,127.67312529,202.08,202.05,4.60147699]
[1756648571039,127.67312529,202.08,202.06,4.60147699]
[1756648571240,5.49312529,202.07,201.92,7.35]
[1756648571432,5.49312529,202.06,201.94,7.35]
[1756648571636,5.49312529,202.06,201.96,7.35]
[1756648571837,5.49312529,202.06,201.97,4.60193404]
[1756648572034,5.49312529,202.06,201.98,4.60193404]
[1756648572238,5.49312529,202.06,201.99,4.60193404]
[1756648572440,5.49312529,202.07,202.0,4.60193404]
[1756648572640,5.49312529,202.07,201.98,7.35]
[1756648572641,5.49312529,202.06,202.01,4.60193404]
[1756648572839,5.49312529,202.06,202.02,4.60193404]
[1756648573044,5.49312529,202.06,202.03,4.60193404]
[1756648573243,5.49312529,202.06,202.04,4.60193404]
[1756648573443,5.49312529,202.06,202.05,4.60193404]
[1756648573944,5.49312529,202.07,202.05,4.60193404]
[1756648574145,122.14,202.06,201.98,7.35]
[1756648574345,122.14,202.06,201.99,4.60218853]
[1756648574642,122.14,202.06,202.0,4.60218853]
[1756648574843,122.14,202.06,202.01,11.95218853]
[1756648575039,122.14,202.06,202.02,4.60218853]
[1756648575244,122.14,202.06,202.03,4.60218853]
[1756648575445,122.14,202.06,202.04,4.60218853]
[1756648575646,122.14,202.06,202.05,4.60218853]
[1756648579346,122.14,202.06,202.05,11.95218853]
[1756648579546,122.02,202.06,202.05,11.95218853]
[1756648579949,122.02,202.06,202.05,4.60218853]
[1756648581139,122.02,202.06,202.05,4.60087685]
[1756648582644,338.21312529,202.1,202.05,4.60087685]
[1756648582942,122.12,202.09,202.06,4.60087685]
[1756648583146,332.72,202.1,202.07,4.60087685]
[1756648583335,332.72,202.1,202.01,7.35]
[1756648583336,332.72,202.1,202.08,4.60578004]
[1756648583542,332.72,202.1,202.09,4.60578004]
[1756648583742,454.84,202.1,202.09,4.60578004]
[1756648585348,455.34,202.1,202.09,4.60578004]
[1756648588242,455.34,202.1,202.01,7.35]
[1756648588441,454.84,202.1,202.02,4.60433287]
[1756648588637,454.84,202.1,202.03,4.60433287]
[1756648588842,454.84,202.1,202.04,4.60433287]
[1756648589043,454.84,202.1,202.05,4.60433287]
[1756648589240,454.84,202.1,201.96,7.35]
[1756648589241,5.49312529,202.07,201.96,7.35]
[1756648589442,122.24,202.06,201.97,4.60613162]
[1756648589648,122.24,202.06,201.98,4.60613162]
[1756648589848,122.24,202.06,201.96,7.35]
[1756648593155,5.49312529,202.07,201.96,7.35]
[1756648593450,5.49312529,202.08,201.96,7.35]
[1756648593645,122.14,202.06,201.96,7.35]
[1756648595451,338.21312529,202.1,201.96,7.35]
[1756648595658,122.28,202.09,201.96,11.51235422]
[1756648595951,122.28,202.09,201.97,4.16235422]
[1756648596153,122.28,202.09,201.98,7.35]
[1756648598255,122.3,202.08,201.98,7.35]
[1756648603357,122.2,202.11,201.99,11.86830714]
[1756648603567,122.2,202.11,202.0,7.71]
[1756648607865,122.12,202.19,202.05,7.71]
[1756648608064,122.12,202.19,202.07,7.71]
[1756648608264,122.12,202.19,202.08,4.67771104]
[1756648608465,122.12,202.19,202.09,4.67771104]
[1756648608656,122.12,202.19,202.1,4.67771104]
[1756648608862,122.12,202.19,202.11,4.67771104]
[1756648609162,122.12,202.19,202.12,4.67771104]
[1756648609362,122.12,202.19,202.13,4.67771104]
[1756648609562,122.12,202.19,202.14,4.67771104]
[1756648609765,122.12,202.19,202.07,7.71]
[1756648609766,122.12,202.19,202.15,4.67292305]
[1756648609965,122.12,202.19,202.16,4.67292305]
[1756648610265,122.12,202.19,202.17,4.67292305]
[1756648610466,122.12,202.19,202.07,7.71]
[1756648610666,122.12,202.19,202.08,4.67148208]
[1756648610867,122.12,202.19,202.09,4.67148208]
[1756648611068,122.12,202.19,202.1,4.67148208]
[1756648611266,122.12,202.19,202.11,4.67148208]
[1756648611467,122.12,202.19,202.12,4.67148208]
[1756648611662,122.12,202.19,202.13,4.67148208]
[1756648611965,122.12,202.19,202.14,4.67148208]
[1756648612165,122.12,202.19,202.15,4.67148208]
[1756648612367,122.12,202.19,202.07,7.71]
[1756648612562,122.12,202.19,202.08,4.67032712]
[1756648612763,122.12,202.19,202.09,4.67032712]
[1756648612958,122.12,202.19,202.1,4.67032712]
[1756648613165,122.12,202.19,202.07,7.71]
[1756648613370,122.12,202.19,202.08,4.67008848]
[1756648613663,122.12,202.19,202.09,4.67008848]
[1756648613871,122.12,202.19,202.1,4.67008848]
[1756648614068,122.12,202.19,202.11,4.67008848]
[1756648614373,122.12,202.19,202.12,4.67008848]
[1756648614569,122.12,202.19,202.13,4.67008848]
[1756648614769,122.12,202.19,202.14,4.67008848]
[1756648614970,122.12,202.19,202.07,7.71]
[1756648615270,122.12,202.19,202.08,4.66907465]
[1756648615471,122.12,202.19,202.09,4.66907465]
[1756648615672,122.12,202.19,202.1,4.66907465]
[1756648615869,122.12,202.19,202.11,4.66907465]
[1756648616069,122.12,202.19,202.12,4.66907465]
[1756648616371,122.12,202.19,202.13,4.66907465]
[1756648616573,122.12,202.19,202.14,4.66853921]
[1756648616767,122.12,202.19,202.07,7.71]
[1756648616968,122.12,202.19,202.08,4.66849786]
[1756648617170,122.12,202.19,202.09,4.66849786]
[1756648617374,122.12,202.19,202.1,4.66849786]
[1756648617673,122.12,202.19,202.11,4.66849786]
[1756648617872,122.12,202.19,202.12,4.66849786]
[1756648618166,122.12,202.19,202.13,4.66849786]
[1756648618469,122.12,202.19,202.14,4.66849786]
[1756648618674,127.61312529,202.19,201.99,7.71]
[1756648618868,69.54,202.18,202.01,7.71]
[1756648619069,69.54,202.18,202.03,7.71]
[1756648619274,69.54,202.18,202.05,7.71]
[1756648619573,69.54,202.18,202.07,7.71]
[1756648619768,69.54,202.18,202.08,4.65790938]
[1756648619967,69.54,202.18,202.07,7.71]
[1756648619968,69.54,202.18,202.09,4.65790938]
[1756648620169,69.54,202.18,202.1,4.65790938]
[1756648620470,69.54,202.18,202.07,7.71]
[1756648620670,72.3,202.17,202.09,7.71]
[1756648620865,72.3,202.17,202.1,4.65825244]
[1756648621074,72.3,202.17,202.11,4.65825244]
[1756648621380,72.3,202.17,202.12,12.36833109]
[1756648621580,72.3,202.17,202.13,4.65833109]
[1756648621780,6.35425565,202.22,202.14,4.65833109]
[1756648622075,113.1,202.21,202.15,4.65833109]
[1756648622275,113.1,202.21,202.16,4.65833109]
[1756648622475,113.1,202.21,202.17,4.65833109]
[1756648622778,113.1,202.21,202.12,7.71]
[1756648622974,122.28,202.2,202.13,4.65779281]
[1756648623170,122.28,202.2,202.14,4.65779281]
[1756648623474,122.28,202.2,202.15,4.65779281]
[1756648623676,122.28,202.2,202.07,7.71]
[1756648623876,5.49312529,202.19,202.08,4.65800889]
[1756648624071,5.49312529,202.19,202.09,4.65800889]
[1756648624276,5.49312529,202.19,202.1,4.65800889]
[1756648624477,5.49312529,202.19,202.11,4.65800889]
[1756648624675,5.49312529,202.19,202.12,4.65800889]
[1756648624878,5.49312529,202.19,202.13,4.65800889]
[1756648625177,5.49312529,202.19,202.04,7.71]
[1756648625476,5.49312529,202.19,202.05,4.65883825]
[1756648625667,5.49312529,202.19,202.06,4.65883825]
[1756648625867,5.49312529,202.19,202.07,4.65883825]
[1756648626070,5.49312529,202.19,202.08,4.65883825]
[1756648626269,5.49312529,202.19,202.09,4.65883825]
[1756648626473,5.49312529,202.19,202.1,4.65883825]
[1756648626678,5.49312529,202.19,202.11,4.65937865]
[1756648626874,5.49312529,202.19,202.12,4.65937865]
[1756648627075,5.49312529,202.19,202.13,4.65937865]
[1756648627275,5.49312529,202.19,202.04,7.71]
[1756648627476,5.49312529,202.19,202.05,4.65972834]
[1756648627777,122.28,202.18,202.07,7.71]
[1756648627969,122.28,202.18,202.08,4.65972834]
[1756648628175,122.28,202.18,202.09,4.65972834]
[1756648628477,122.28,202.18,202.1,4.65972834]
[1756648628674,122.28,202.18,202.11,4.65972834]
[1756648628875,122.28,202.18,202.12,4.65972834]
[1756648629177,5.49312529,202.19,202.13,4.65972834]
[1756648629477,122.26,202.17,202.07,7.71]
[1756648629671,122.26,202.17,202.08,4.66024603]
[1756648629868,122.26,202.17,202.09,4.66024603]
[1756648630173,122.26,202.17,202.1,4.66024603]
[1756648630477,122.26,202.17,202.11,4.66024603]
[1756648630679,122.26,202.17,202.12,4.66024603]
[1756648630873,122.26,202.17,202.13,4.66024603]
[1756648631073,122.26,202.17,202.07,7.71]
[1756648631277,122.26,202.17,202.08,4.66063024]
[1756648631469,122.26,202.17,202.09,4.66063024]
[1756648631676,122.26,202.17,202.1,4.66063024]
[1756648631872,122.26,202.17,202.11,4.66063024]
[1756648632077,122.26,202.17,202.12,4.66063024]
[1756648632278,122.26,202.17,202.13,4.66063024]
[1756648632576,122.16,202.16,202.07,7.71]
[1756648632777,5.49312529,202.19,202.08,4.66130071]
[1756648632977,122.14,202.15,202.09,4.66130071]
[1756648633181,122.14,202.15,202.1,4.66130071]
[1756648633482,122.12,202.14,202.11,4.66130071]
[1756648633681,122.12,202.14,202.12,4.66173163]
[1756648633882,122.12,202.14,202.13,4.66173163]
[1756648634585,122.12,202.14,202.13,4.66251748]
[1756648636078,5.49312529,202.19,202.13,4.66251748]
[1756648636281,34.44,202.18,202.14,12.24251748]
[1756648636583,59.04,202.19,202.15,4.66251748]
[1756648636780,59.04,202.19,202.16,12.24251748]
[1756648636982,59.04,202.19,202.17,4.66251748]
[1756648637181,59.04,202.19,202.18,4.66251748]
[1756648637377,5.49312529,202.23,202.18,4.66251748]
[1756648637686,122.26,202.22,202.19,4.66251748]
[1756648637885,122.26,202.22,202.2,4.66251748]
[1756648638085,122.26,202.22,202.21,4.66251748]
[1756648641284,122.18,202.22,202.21,4.66251748]
[1756648644298,122.18,202.22,202.16,7.58]
[1756648644493,122.18,202.22,202.17,12.24393009]
[1756648644692,122.18,202.22,202.18,4.66393009]
[1756648644897,122.18,202.22,202.19,4.66393009]
[1756648645196,122.18,202.22,202.2,4.66393009]
[1756648645499,122.18,202.22,202.21,4.66393009]
[1756648649799,0.86101317,202.25,202.21,4.66393009]
[1756648650104,0.86101317,202.25,202.17,7.58]
[1756648650105,0.86101317,202.25,202.22,4.6790658]
[1756648650305,121.92,202.24,202.23,4.6790658]
[1756648650505,121.92,202.24,202.23,4.67864879]
[1756648651105,0.86101317,202.25,202.23,4.67864879]
[1756648651305,121.9,202.24,202.18,7.58]
[1756648651506,0.86101317,202.25,202.19,4.67833033]
[1756648651706,121.9,202.24,202.2,4.67833033]
[1756648651902,121.9,202.24,202.21,4.67833033]
[1756648652103,121.9,202.24,202.22,4.67833033]
[1756648652304,121.9,202.24,202.23,4.67833033]
[1756648653903,0.86101317,202.25,202.23,4.67833033]
[1756648654105,121.9,202.24,202.19,7.58]
[1756648654408,121.9,202.24,202.21,7.58]
[1756648654606,121.9,202.24,202.22,4.67700036]
[1756648654804,121.9,202.24,202.23,4.67700036]
[1756648655106,121.9,202.24,202.23,4.67635382]
[1756648657707,333.50075762,202.28,202.23,12.47635382]
[1756648658011,121.88,202.27,202.24,4.67635382]
[1756648658206,121.88,202.27,202.25,4.67635382]
[1756648658407,121.88,202.27,202.26,4.67171]
[1756648661209,121.88,202.27,202.19,7.8]
[1756648661509,121.88,202.27,202.2,4.66870167]
[1756648661703,121.88,202.27,202.21,4.66870167]
[1756648661902,332.64,202.28,202.22,12.46870167]
[1756648662100,332.64,202.28,202.24,7.8]
[1756648662309,121.88,202.27,202.26,7.8]
[1756648662610,332.64,202.28,202.26,4.66870167]
[1756648662808,332.64,202.28,202.27,12.46870167]
[1756648663210,454.52,202.28,202.27,12.46870167]
[1756648665708,454.52,202.28,202.27,12.46191088]
[1756648666412,454.52,202.28,202.27,12.46062645]
[1756648668517,454.52,202.28,202.27,4.66062645]
[1756648669205,454.52,202.28,202.27,4.65532578]
[1756648674718,332.64,202.28,202.27,4.65532578]
[1756648675017,454.48,202.28,202.27,4.65532578]
[1756648676418,454.48,202.28,202.27,12.45991938]
[1756648676613,121.84,202.28,202.27,12.45991938]
[1756648677321,5.49312529,202.38,202.27,12.45962754]
[1756648677618,121.84,202.37,202.28,4.65962754]
[1756648677817,121.84,202.36,202.29,4.65962754]
[1756648678012,121.84,202.36,202.18,19.47456]
[1756648678013,121.84,202.35,202.3,4.65962754]
[1756648678219,121.84,202.35,202.31,4.65962754]
[1756648678418,121.84,202.35,202.18,19.47456]
[1756648678419,121.84,202.35,202.32,4.65962754]
[1756648678619,121.84,202.35,202.27,7.8]
[1756648678819,121.84,202.35,202.28,4.64095937]
[1756648679118,121.84,202.35,202.29,4.64095937]
[1756648679318,121.84,202.35,202.3,4.64095937]
[1756648679614,121.84,202.35,202.31,4.64095937]
[1756648679819,121.84,202.35,202.32,4.64095937]
[1756648680118,121.84,202.35,202.33,4.64095937]
[1756648680318,121.84,202.35,202.27,7.8]
[1756648680519,121.84,202.35,202.28,4.64435018]
[1756648680818,121.84,202.35,202.29,4.64435018]
[1756648681009,121.84,202.35,202.3,4.64435018]
[1756648681213,121.84,202.35,202.31,4.64435018]
[1756648681413,121.84,202.35,202.32,4.64435018]
[1756648681613,121.84,202.35,202.24,7.8]
[1756648681819,121.84,202.35,202.25,4.64497447]
[1756648682018,121.84,202.35,202.26,4.64497447]
[1756648682209,121.84,202.35,202.27,4.64497447]
[1756648682409,121.84,202.35,202.28,4.64497447]
[1756648682615,121.84,202.35,202.29,4.64497447]
[1756648682817,121.84,202.35,202.3,4.64497447]
[1756648683016,121.84,202.35,202.31,4.64497447]
[1756648683215,121.84,202.35,202.32,4.64497447]
[1756648683417,121.84,202.35,202.33,4.6452169]
[1756648683616,121.84,202.35,202.24,7.8]
[1756648683911,121.84,202.35,202.25,4.6452169]
[1756648684117,121.84,202.35,202.26,4.6452169]
[1756648684315,121.84,202.35,202.27,12.4452169]
[1756648684519,121.84,202.35,202.28,4.6452169]
[1756648684719,121.84,202.35,202.29,4.6452169]
[1756648684920,121.84,202.35,202.3,4.6452169]
[1756648685116,121.84,202.35,202.31,4.6452169]
[1756648685321,121.84,202.35,202.32,4.6452169]
[1756648685524,121.84,202.35,202.27,7.8]
[1756648685819,121.84,202.35,202.28,4.64536896]
[1756648686022,121.84,202.35,202.29,4.64536896]
[1756648686221,121.84,202.35,202.3,4.64536896]
[1756648686424,121.84,202.35,202.31,4.64536896]
[1756648686622,121.84,202.35,202.32,4.64536896]
[1756648686821,121.84,202.35,202.27,7.8]
[1756648687023,121.84,202.35,202.28,4.64569516]
[1756648687223,121.84,202.35,202.29,4.64569516]
[1756648687425,121.84,202.35,202.3,4.64569516]
[1756648687624,121.84,202.35,202.2,7.57]
[1756648687926,5.49312529,202.31,202.21,4.64581104]
[1756648688125,127.29312529,202.3,202.22,4.64581104]
[1756648688315,127.29312529,202.3,202.23,4.64581104]
[1756648688520,127.29312529,202.3,202.24,4.64581104]
[1756648688725,127.29312529,202.3,202.18,19.47456]
[1756648688926,127.29312529,202.3,202.19,4.64701456]
[1756648689124,127.29312529,202.3,202.2,4.64701456]
[1756648689323,127.29312529,202.3,202.21,4.64701456]
[1756648689525,127.29312529,202.3,202.22,4.64701456]
[1756648689726,127.29312529,202.3,202.23,4.64701456]
[1756648690028,127.29312529,202.3,202.24,4.64701456]
[1756648690217,127.29312529,202.3,202.25,4.64701456]
[1756648690422,127.29312529,202.3,202.18,19.47456]
[1756648690625,127.29312529,202.3,202.19,4.64802857]
[1756648690825,127.29312529,202.3,202.2,4.64802857]
[1756648691025,127.29312529,202.3,202.21,4.64802857]
[1756648691227,127.29312529,202.3,202.22,4.64802857]
[1756648691427,127.29312529,202.3,202.23,4.64802857]
[1756648691626,127.29312529,202.3,202.24,4.64802857]
[1756648691826,127.29312529,202.3,202.25,4.64802857]
[1756648692127,127.29312529,202.3,202.18,19.47456]
[1756648692324,127.29312529,202.3,202.19,4.64878998]
[1756648692524,5.49312529,202.29,202.2,4.64878998]
[1756648692723,5.49312529,202.29,202.21,4.64878998]
[1756648692918,5.49312529,202.29,202.18,19.47456]
[1756648692919,5.49312529,202.29,202.22,4.64878998]
[1756648693124,5.49312529,202.28,202.23,4.64878998]
[1756648693319,5.49312529,202.29,202.24,4.64952174]
[1756648693527,5.49312529,202.28,202.18,19.47456]
[1756648693729,5.49312529,202.28,202.19,4.64960412]
[1756648693926,5.49312529,202.28,202.2,4.64960412]
[1756648694130,5.49312529,202.28,202.21,4.64960412]
[1756648694332,5.49312529,202.28,202.22,4.64960412]
[1756648694531,5.49312529,202.28,202.23,4.64960412]
[1756648694732,5.49312529,202.28,202.24,4.64960412]
[1756648694932,5.49312529,202.28,202.18,19.47456]
[1756648695232,5.49312529,202.28,202.19,4.64981842]
[1756648695434,5.49312529,202.28,202.2,4.64981842]
[1756648695631,5.49312529,202.28,202.21,4.64981842]
[1756648695831,5.49312529,202.28,202.18,19.47456]
[1756648695832,5.49312529,202.28,202.22,4.64981842]
[1756648696031,5.49312529,202.28,202.23,4.64981842]
[1756648696231,5.49312529,202.28,202.24,4.64981842]
[1756648696434,5.49312529,202.28,202.18,19.47456]
[1756648696634,5.49312529,202.28,202.19,4.65025489]
[1756648696835,5.49312529,202.28,202.2,4.65025489]
[1756648697135,5.49312529,202.28,202.21,4.65025489]
[1756648697334,5.49312529,202.28,202.22,4.65025489]
[1756648697635,5.49312529,202.28,202.23,4.65047719]
[1756648697837,5.49312529,202.28,202.24,4.65047719]
[1756648698037,5.49312529,202.28,202.18,19.47456]
[1756648698232,5.49312529,202.28,202.19,4.65047719]
[1756648698429,5.49312529,202.28,202.2,4.65047719]
[1756648698627,5.49312529,202.28,202.21,4.65047719]
[1756648698931,5.49312529,202.25,202.18,19.47456]
[1756648699135,121.84,202.24,202.19,4.65104815]
[1756648699433,121.84,202.24,202.2,4.65104815]
[1756648699635,121.84,202.24,202.18,19.47456]
[1756648699836,121.84,202.24,202.19,4.65001866]
[1756648700032,121.84,202.24,202.2,4.65001866]
[1756648700238,121.84,202.24,202.18,19.47456]
[1756648700437,121.84,202.24,202.19,4.64905443]
[1756648700637,121.84,202.24,202.2,4.64905443]
[1756648700936,121.84,202.24,202.18,19.47456]
[1756648701136,121.84,202.24,202.19,4.64905443]
[1756648701340,121.84,202.24,202.2,4.64905443]
[1756648701541,121.84,202.24,202.18,19.47456]
[1756648701737,121.84,202.24,202.19,4.64806958]
[1756648701941,121.84,202.24,202.2,4.64806958]
[1756648702141,121.84,202.24,202.18,19.47456]
[1756648702442,121.84,202.24,202.19,4.64722057]
[1756648702738,121.84,202.24,202.2,4.64722057]
[1756648702936,121.84,202.24,202.18,19.47456]
[1756648703141,121.84,202.24,202.19,4.64713017]
[1756648703334,121.84,202.24,202.2,4.64713017]
[1756648703532,121.84,202.24,202.18,19.47456]
[1756648703731,121.84,202.24,202.19,4.64612132]
[1756648703942,121.84,202.24,202.2,4.64612132]
[1756648704241,121.84,202.24,202.18,19.47456]
[1756648704442,121.84,202.24,202.19,4.64542437]
[1756648704641,121.84,202.24,202.18,19.47456]
[1756648704642,121.84,202.24,202.2,4.64542437]
[1756648704844,121.84,202.24,202.18,19.47456]
[1756648705046,121.84,202.24,202.19,4.64508554]
[1756648705337,121.84,202.24,202.18,19.47456]
[1756648705338,127.83312529,202.24,202.18,19.47456]
[1756648705543,5.49312529,202.23,202.18,19.47456]
[1756648708245,127.33312529,202.24,202.18,19.47456]
[1756648712243,121.84,202.24,202.18,19.47456]
[1756648713549,5.49312529,202.25,202.18,19.47456]
[1756648713745,121.86,202.24,202.18,27.04456]
[1756648713942,121.86,202.24,202.18,19.47456]
[1756648714146,121.86,202.24,202.19,7.57]
[1756648714448,5.49312529,202.27,202.19,7.57]
[1756648714648,121.86,202.26,202.19,7.57]
[1756648715244,5.49312529,202.29,202.19,7.57]
[1756648715439,121.86,202.28,202.19,7.57]
[1756648715641,121.86,202.27,202.19,7.57]
[1756648715950,5.49312529,202.29,202.19,7.57]
[1756648716252,121.86,202.28,202.19,7.57]
[1756648719350,337.81312529,202.31,202.19,7.57]
[1756648719550,332.32,202.31,202.21,7.87]
[1756648719751,121.84,202.3,202.22,4.56533627]
[1756648719952,121.84,202.3,202.24,7.87]
[1756648720150,121.84,202.3,202.26,7.87]
[1756648720451,121.84,202.3,202.19,7.87]
[1756648720648,121.84,202.3,202.21,7.87]
[1756648720849,121.84,202.3,202.23,7.87]
[1756648721152,121.84,202.3,202.24,4.5653661]
[1756648721347,121.84,202.3,202.25,4.5653661]